[Event "Stare Mesto Open-A 2022"]
[Site "Stare Mesto"]
[Date "2022.08.19"]
[Round "8.4"]
[White "Babula, Vlastimil"]
[Black "Travnicek, Krystof Mikulas"]
[Result "1-0"]
[ECO "C11"]
[WhiteElo "2571"]
[BlackElo "2138"]
[Annotator "TA"]
[PlyCount "57"]
[EventDate "2022.08.12"]
[EventType "swiss"]
[EventCountry "CZE"]
[SourceTitle "playchess.com"]
[Source "ChessBase"]
[SourceQuality "1"]
[TimeControl "40/5400+30:1800+30"]

{[%evp 16,57,20,13,10,8,19,8,8,16,24,29,35,28,26,41,40,42,39,27,33,39,35,20,40,24,21,18,41,0,0,0,0,-7,0,0,150,156,179,176,198,188,414,400]} 1. e4 {[%emt 0:00:03]} e6 {[%emt 0:00:17]} 2. d4 {[%emt 0:00:09]} d5 {[%emt 0:00:09]} 3. Nc3 {[%emt 0:00:17]} Nf6 {[%emt 0:00:25]} 4. e5 {[%emt 0:00:11]} Nfd7 {[%emt 0:00:09]} 5. f4 {[%emt 0:00:17]} c5 {[%emt 0:00:18]} 6. Nf3 {[%emt 0:00:18]} Nc6 {[%emt 0:00:29]} 7. Be3 {[%emt 0:00:23]} Be7 {[%emt 0:01:09]} 8. Qd2 {[%emt 0:00:15]} O-O {[%emt 0:00:49]} 9. dxc5 {[%emt 0:00:29]} Qa5 {[%emt 0:02:36] C11: French: Classical System: 4 e5 and 4 Bg5 dxe4.} 10. a3 {[%emt 0:00:52]} Bxc5 {[%emt 0:01:29]} 11. Nd4 $5 {[%emt 0:01:23][%mdl 4] Exploring less charted territory.} Nxd4 {[%emt 0:06:22] The position is equal.} 12. Bxd4 {[%emt 0:00:09]} Bxd4 {[%emt 0:18:27]} 13. Qxd4 {[%emt 0:00:02]} Qb6 {[%emt 0:01:26] [#]} 14. Nb5 $146 {[%emt 0:10:23][%cal Bc3b5,Bb5d4,Bd4f3][%mdl 32]} ({Predecessor:} 14. O-O-O Qxd4 15. Rxd4 f6 16. exf6 Nxf6 17. g3 Bd7 18. Bg2 Rac8 19. Re1 Rfe8 20. Bf3 {½-½ (60) Melia,S (2371)-Hristodoulaki,A (2075) Terme Catez 2021}) 14... a6 {[%emt 0:08:23]} 15. Qxb6 {[%emt 0:00:31]} Nxb6 {[%emt 0:00:03]} 16. Nd4 {[%emt 0:01:07]} f6 {[%emt 0:05:55]} 17. exf6 {[%emt 0:06:11]} gxf6 {[%emt 0:00:49]} 18. O-O-O {[%emt 0:09:37]} e5 {[%emt 0:04:02]} 19. Nf3 {[%emt 0:00:39]} Bg4 {[%emt 0:06:52]} 20. Be2 {[%emt 0:01:03]} (20. Re1 $5 {[%cal Rf4e5]}) 20... Rae8 {[%emt 0:02:58]} 21. Rhe1 {[%emt 0:06:04][%cal Bh1e1,Be1e3,Be3e4][%mdl 32]} Bc8 {[%emt 0:07:03]} 22. Ng1 {[%emt 0:10:24][%cal Oa3a4]} Bf5 {[%emt 0:06:44]} 23. Bf3 {[%emt 0:08:44]} Rc8 {[%emt 0:18:12]} ({But not} 23... exf4 24. Rxe8 Rxe8 25. Ne2 $14) 24. Rd2 {[%emt 0:01:09]} e4 {[%emt 0:00:34] [#] Strongly threatening ...Nc4.} 25. Bd1 {[%emt 0:01:42]} e3 {[%emt 0:01:11]} (25... Be6 $11) 26. Rxe3 $16 {[%emt 0:01:57]} Be4 {[%emt 0:01:44]} 27. b3 {[%emt 0:01:21] Inhibits Nc4.} Kh8 {[%emt 0:01:11]} 28. g3 {[%emt 0:01:48]} Nd7 $2 {[%emt 0:00:59] [#]} (28... f5 29. Kb2 Nd7) 29. Rxe4 {[%emt 0:01:49] Weighted Error Value: White=0.05 (flawless) /Black=0.35} 1-0

[Event "Stare Mesto Open-A 2022"]
[Site "Stare Mesto"]
[Date "2022.08.19"]
[Round "8.5"]
[White "Murko, David"]
[Black "Lojek, Marek"]
[Result "1-0"]
[ECO "C65"]
[WhiteElo "2213"]
[BlackElo "2142"]
[Annotator "TA"]
[PlyCount "175"]
[EventDate "2022.08.12"]
[EventType "swiss"]
[EventCountry "CZE"]
[SourceTitle "playchess.com"]
[Source "ChessBase"]
[SourceQuality "1"]
[TimeControl "40/5400+30:1800+30"]

{[%evp 9,175,27,30,14,7,16,14,0,0,0,30,13,25,26,140,140,139,127,137,128,130,142,217,204,214,210,208,206,202,209,207,218,206,207,203,156,165,158,177,171,189,166,186,77,71,70,75,-54,-63,-60,50,22,34,49,34,39,108,114,124,110,132,110,173,170,158,168,168,161,199,206,210,215,220,220,225,228,219,216,242,208,208,201,210,166,183,165,187,147,122,67,109,89,189,166,166,171,206,195,174,93,97,83,124,124,156,158,254,252,241,212,202,210,219,203,292,281,267,203,242,242,245,245,318,307,576,382,564,558,405,341,473,395,291,275,2210,1896,2309,2141,1129,156,286,206,2104,1797,1419,1173,3717,2975,29973,29974,12846,12850,29973,29974,29974,29976,29976,29977,29971,2067,29984,29984,29984,29985,29985,29986,29993,29994]} 1. e4 {[%emt 0:00:02]} e5 {[%emt 0:00:08]} 2. Nf3 {[%emt 0:00:04]} Nc6 {[%emt 0:00:05]} 3. Bb5 {[%emt 0:00:05]} Nf6 {[%emt 0:00:19]} 4. d3 {[%emt 0:00:32]} Bc5 {[%emt 0:00:26]} 5. Bxc6 {[%emt 0:00:26]} dxc6 {[%emt 0:00:11]} 6. Nbd2 {[%emt 0:00:26] C65: Ruy Lopez: Berlin Defence (3...Nf6), unusual lines and 4 0-0 Bc5.} Be6 {[%emt 0:01:19]} 7. O-O {[%emt 0:01:03]} Nd7 {[%emt 0:02:23] 7...Bd6 deserves study.} 8. Nb3 {[%emt 0:00:39] The position is equal.} Bb6 {[%emt 0:02:48]} 9. Ng5 {[%emt 0:01:25]} Nf8 {[%emt 0:00:49]} 10. Qh5 {[%emt 0:07:43]} Qd6 {[%emt 0:11:05] [#]} 11. Be3 $146 {[%emt 0:04:09]} ({Predecessor:} 11. Kh1 Bxb3 12. axb3 Qg6 13. Qh3 h6 14. Nf3 Qd6 15. Bd2 Ng6 16. Bc3 O-O 17. Nd2 {1-0 (69) Anand,V (2792)-Howell,D (2667) London 2014}) 11... O-O-O {[%emt 0:07:26]} (11... g6 $11 12. Qh6 O-O-O) 12. Nxf7 $16 {[%emt 0:06:58]} Bxf7 {[%emt 0:00:12]} 13. Qxf7 {[%emt 0:00:05]} Ne6 {[%emt 0:00:22]} 14. Nd2 {[%emt 0:07:57]} Rdf8 {[%emt 0:20:29]} 15. Qh5 {[%emt 0:00:15] White is more active.} g6 {[%emt 0:04:54]} (15... Nf4 $16 {was called for.} 16. Bxf4 exf4) 16. Qh3 $1 $18 {[%emt 0:01:05]} Qe7 {[%emt 0:02:19]} 17. Nc4 $1 {[%emt 0:01:31]} Qf6 {[%emt 0:04:19] [#]} 18. Bg5 $1 {[%emt 0:13:58][%mdl 512]} Bxf2+ {[%emt 0:02:51]} 19. Kh1 {[%emt 0:00:03]} Qxg5 {[%emt 0:00:41]} 20. Qxe6+ {[%emt 0:00:07]} Kb8 {[%emt 0:00:11]} 21. Nxe5 {[%emt 0:02:18] Hoping for Nd7+.} ({Much less strong is} 21. Qxe5 $6 Qh4 $16) 21... Re8 {[%emt 0:02:21] [#]} 22. Qf6 {[%emt 0:03:58][%mdl 512]} Qxe5 {[%emt 0:03:04]} 23. Rxf2 {[%emt 0:02:08]} Qb5 {[%emt 0:04:56]} 24. Raf1 {[%emt 0:04:22][%cal Of6h8]} a6 {[%emt 0:00:57]} 25. b3 {[%emt 0:04:23]} Qb6 {[%emt 0:02:29]} 26. d4 {[%emt 0:04:30]} (26. Qc3 $18) 26... Rhg8 $16 {[%emt 0:01:09]} 27. Re2 {[%emt 0:07:45]} Qb4 {[%emt 0:02:30]} 28. Rd1 {[%emt 0:04:07]} (28. Kg1 $16) 28... Rgf8 $15 {[%emt 0:01:04]} 29. Qg7 {[%emt 0:00:25]} Rf4 {[%emt 0:02:35]} ({Black should play} 29... Qb5 $1 $15 30. c4 Qh5) 30. h3 $1 $36 {[%emt 0:03:51][%mdl 2048] White has the initiative.} (30. Qxh7 Qxd4 $1 31. Rg1 Ref8 $19) 30... Rfxe4 {[%emt 0:04:23]} 31. Rxe4 {[%emt 0:00:06]} Rxe4 {[%emt 0:00:04]} 32. Qxh7 {[%emt 0:00:25]} Re1+ {[%emt 0:01:21]} ({Black should try} 32... Qd6 $1 $14) 33. Rxe1 $16 {[%emt 0:01:24]} Qxe1+ {[%emt 0:00:05][%mdl 4096] Endgame KQ-KQ} 34. Kh2 {[%emt 0:00:03]} Qe8 {[%emt 0:07:25]} 35. Qg7 {[%emt 0:00:51]} Qe4 {[%emt 0:01:21]} (35... b5 $16 36. Qe5 Qf7) 36. Qh8+ $1 $18 {[%emt 0:00:17]} Ka7 {[%emt 0:00:05]} 37. Qe5 $1 {[%emt 0:00:17]} Qh4 {[%emt 0:01:39]} (37... Qxc2 $2 38. Qc5+ Qxc5 39. dxc5 $18) 38. g3 {[%emt 0:00:48]} Qh6 {[%emt 0:01:13]} 39. h4 $1 {[%emt 0:02:08]} Qd2+ {[%emt 0:05:07]} 40. Kh3 {[%emt 0:00:04]} Qd1 {[%emt 0:00:50]} (40... Qxc2 $2 41. Qc5+ Qxc5 42. dxc5 $18) 41. Qe4 {[%emt 0:33:51]} ({Inferior is} 41. Qxc7 Qf1+ 42. Kh2 Qf2+ 43. Kh3 Qf1+ 44. Kh2 Qf2+ 45. Kh3 Qf1+ $11) 41... Qf1+ {[%emt 0:07:28]} 42. Kg4 {[%emt 0:00:00]} Qd1+ {[%emt 0:03:29]} 43. Kg5 {[%emt 0:00:00]} Qh5+ {[%emt 0:00:08]} 44. Kf4 {[%emt 0:00:00]} Qh6+ {[%emt 0:01:05]} 45. Kf3 {[%emt 0:00:00]} g5 {[%emt 0:02:27]} 46. Ke2 {[%emt 0:00:00]} gxh4 {[%emt 0:00:40]} 47. gxh4 {[%emt 0:00:00]} Qh5+ {[%emt 0:01:06]} 48. Ke3 {[%emt 0:00:00]} Qd1 {[%emt 0:01:20]} 49. a4 {[%emt 0:00:00]} (49. Kf4 $16) 49... Kb8 {[%emt 0:03:52]} 50. Kf4 {[%emt 0:00:00]} Qd2+ {[%emt 0:01:02]} (50... Qh5 $16) 51. Kf5 {[%emt 0:00:00]} Qf2+ {[%emt 0:01:42]} 52. Kg6 {[%emt 0:00:00]} Qg1+ {[%emt 0:00:42]} 53. Kh7 {[%emt 0:00:00]} Qf2 {[%emt 0:02:51]} 54. Kh6 {[%emt 0:00:00]} (54. Kg7 $18) 54... Qf6+ $16 {[%emt 0:01:11]} 55. Kh5 {[%emt 0:00:00]} Qh8+ {[%emt 0:00:36]} 56. Kg4 {[%emt 0:00:00]} Qg7+ {[%emt 0:00:25]} 57. Kf3 {[%emt 0:00:00]} Qf6+ {[%emt 0:00:57]} (57... Qg1 $16 {might work better.} 58. Qe8+ Ka7) 58. Ke2 $1 $18 {[%emt 0:00:00]} Qh8 {[%emt 0:01:58]} 59. Qg4 {[%emt 0:00:00] Prevents Qh5.} b5 {[%emt 0:00:57]} 60. axb5 {[%emt 0:00:00]} axb5 {[%emt 0:00:11]} 61. h5 {[%emt 0:00:00] aiming for Kd3.} Kb7 {[%emt 0:00:51]} (61... b4 $142 62. Qf5 Qg7) 62. Kd3 {[%emt 0:00:00]} Qf6 {[%emt 0:00:37] Inhibits Qg5.} 63. Qh3 {[%emt 0:02:51]} Qh6 {[%emt 0:01:22]} 64. Qf5 $1 {[%emt 0:04:10]} Qc1 {[%emt 0:00:40]} 65. Qc5 {[%emt 0:00:30]} Qd1+ {[%emt 0:01:07] [#]} 66. Kc3 $1 {[%emt 0:00:16]} Qa1+ $2 {[%emt 0:00:19]} (66... Qf1 {was worth a try.} 67. d5 Qf3+ 68. Kb2 cxd5 69. Qxb5+ Kc8 70. Qa6+ Kb8) 67. Kd2 {[%emt 0:00:26]} Qh1 {[%emt 0:00:47]} (67... Qg1 $142 68. Qe5 Qh1) 68. Qe5 {[%emt 0:05:21]} Kb6 {[%emt 0:02:03]} 69. Qg5 {[%emt 0:00:29] Black must now prevent h6.} Qe4 {[%emt 0:00:38]} 70. Qc5+ {[%emt 0:01:11]} Kb7 {[%emt 0:00:12]} 71. Kc3 {[%emt 0:00:28] Threatens to win with Qe5.} Qe1+ $2 {[%emt 0:00:59] [#]} (71... Qf4 72. Kb2 Qf6) 72. Kb2 $1 {[%emt 0:00:04]} Qd2 {[%emt 0:00:09]} 73. Qc3 {[%emt 0:01:56]} Qf4 {[%emt 0:00:33]} 74. Ka2 $2 {[%emt 0:00:51]} (74. Qh3 $18 {is more deadly.} Qh6 75. Qg4) 74... Qh4 {[%emt 0:00:49]} (74... Qh2 $16 {keeps fighting.}) 75. Qc5 {[%emt 0:00:32] d5 is the strong threat.} Qh2 $2 {[%emt 0:00:33]} (75... Qf2 76. Kb2 Qf6) 76. Kb1 {[%emt 0:01:40]} Qd2 {[%emt 0:00:17]} 77. Kb2 {[%emt 0:01:06]} Qh6 {[%emt 0:01:39]} 78. d5 {[%emt 0:01:22]} Qh8+ {[%emt 0:01:42]} 79. Kb1 {[%emt 0:00:40]} cxd5 {[%emt 0:00:12]} 80. Qxb5+ {[%emt 0:00:08]} Ka7 {[%emt 0:00:50]} 81. Qxd5 {[%emt 0:00:17]} Qf6 {[%emt 0:00:20]} 82. Qh1 {[%emt 0:00:18]} Qh6 {[%emt 0:00:22]} 83. Qg1+ {[%emt 0:00:05]} Kb7 {[%emt 0:00:17]} 84. Qg6 {[%emt 0:02:05]} (84. Qg2+ $142 Ka7 85. Qg6 Qd2 86. Qg1+ Kb8 87. Kb2 Qh6 88. Qg6 Qh8+ 89. Kb1) 84... Qe3 {[%emt 0:00:32]} 85. Qf6 {[%emt 0:01:21] White mates.} c5 {[%emt 0:00:48]} 86. h6 {[%emt 0:01:16][%cal Bh5h6,Bh6h7][%mdl 32]} c4 {[%emt 0:00:35]} 87. h7 {[%emt 0:04:39]} c3 {[%emt 0:00:04]} 88. Qg7+ {[%emt 0:01:00] Weighted Error Value: White=0.14 (very precise) /Black=0.21 (precise)} 1-0

[Event "Stare Mesto Open-A 2022"]
[Site "Stare Mesto"]
[Date "2022.08.19"]
[Round "8.6"]
[White "Skalsky, Alexandr"]
[Black "Husek, Martin"]
[Result "1-0"]
[ECO "B20"]
[WhiteElo "2187"]
[BlackElo "2132"]
[Annotator "NA RC"]
[PlyCount "31"]
[EventDate "2022.08.12"]
[EventType "swiss"]
[EventCountry "CZE"]
[SourceTitle "playchess.com"]
[Source "ChessBase"]
[SourceQuality "1"]
[TimeControl "40/5400+30:1800+30"]

1. e4 {[%emt 0:00:03]} c5 {[%emt 0:23:03]} 2. b4 {[%emt 0:00:04]} b6 {[%emt 0:01:34]} 3. bxc5 {[%emt 0:00:24]} bxc5 {[%emt 0:02:14]} 4. Nc3 {[%emt 0:00:03]} g6 {[%emt 0:01:58]} 5. Rb1 {[%emt 0:00:11]} Bg7 {[%emt 0:00:57]} 6. Bb5 {[%emt 0:04:34]} Bb7 {[%emt 0:04:02]} 7. Nf3 {[%emt 0:11:59]} Nf6 {[%emt 0:04:03]} 8. Bc4 {[%emt 0:09:12]} Qc8 {[%emt 0:02:16]} 9. e5 {[%emt 0:01:59]} Ng4 {[%emt 0:18:03]} 10. Bxf7+ {[%emt 0:01:00]} Kxf7 {[%emt 0:00:07]} 11. Ng5+ {[%emt 0:00:04]} Kg8 {[%emt 0:00:12]} 12. Qxg4 {[%emt 0:00:09]} Bxe5 {[%emt 0:01:37]} 13. O-O {[%emt 0:07:23]} Bxc3 {[%emt 0:11:26]} 14. Qc4+ {[%emt 0:01:43]} e6 {[%emt 0:00:54]} 15. Qxc3 {[%emt 0:00:17]} Nc6 {[%emt 0:02:48]} 16. Qf6 {[%emt 0:02:36]} 1-0

[Event "Stare Mesto Open-A 2022"]
[Site "Stare Mesto"]
[Date "2022.08.19"]
[Round "8.7"]
[White "Kovarik, David"]
[Black "Vrtal, Jaroslav"]
[Result "1-0"]
[ECO "B98"]
[WhiteElo "1741"]
[BlackElo "2000"]
[Annotator "NA RC"]
[PlyCount "77"]
[EventDate "2022.08.12"]
[EventType "swiss"]
[EventCountry "CZE"]
[SourceTitle "playchess.com"]
[Source "ChessBase"]
[SourceQuality "1"]
[TimeControl "40/5400+30:1800+30"]

1. e4 {[%emt 0:00:02]} c5 {[%emt 0:14:31]} 2. Nf3 {[%emt 0:00:06]} d6 {[%emt 0:00:05]} 3. d4 {[%emt 0:00:03]} cxd4 {[%emt 0:00:04]} 4. Nxd4 {[%emt 0:00:02]} Nf6 {[%emt 0:00:08]} 5. Nc3 {[%emt 0:00:05]} a6 {[%emt 0:00:13]} 6. Bg5 {[%emt 0:00:03]} e6 {[%emt 0:00:07]} 7. f4 {[%emt 0:00:03]} Be7 {[%emt 0:00:04]} 8. Qf3 {[%emt 0:00:06]} Qc7 {[%emt 0:00:07]} 9. O-O-O {[%emt 0:00:09]} b5 {[%emt 0:02:40]} 10. Bxf6 {[%emt 0:18:31]} gxf6 {[%emt 0:02:53]} 11. e5 {[%emt 0:00:53]} Bb7 {[%emt 0:01:01]} 12. Qh5 {[%emt 0:00:24]} Bc8 {[%emt 0:09:26]} 13. Bxb5+ {[%emt 0:24:02]} axb5 {[%emt 0:01:27]} 14. Ndxb5 {[%emt 0:01:02]} Qc5 {[%emt 0:01:14]} 15. b4 {[%emt 0:26:09]} Qb6 {[%emt 0:03:50]} 16. exf6 {[%emt 0:01:45]} Bf8 {[%emt 0:02:22]} 17. a4 {[%emt 0:08:38]} Na6 {[%emt 0:04:21]} 18. Nd5 {[%emt 0:07:01]} exd5 {[%emt 0:05:54]} 19. Rhe1+ {[%emt 0:01:39]} Kd8 {[%emt 0:00:11]} 20. Qxf7 {[%emt 0:00:54]} Bd7 {[%emt 0:01:23]} 21. Re7 {[%emt 0:05:20]} Bxb5 {[%emt 0:16:22]} 22. axb5 {[%emt 0:01:51]} Nc7 {[%emt 0:00:43]} 23. Rde1 {[%emt 0:01:28]} Ra1+ {[%emt 0:00:16]} 24. Kb2 {[%emt 0:00:59]} Rxe1 {[%emt 0:00:07]} 25. Rxe1 {[%emt 0:00:18]} Qxb5 {[%emt 0:01:29]} 26. c3 {[%emt 0:00:57]} Qd7 {[%emt 0:00:56]} 27. Qh5 {[%emt 0:00:26]} Qb5 {[%emt 0:02:20]} 28. f7 {[%emt 0:00:19]} Be7 {[%emt 0:01:26]} 29. Qg4 {[%emt 0:00:51]} d4 {[%emt 0:01:44]} 30. Qg8+ {[%emt 0:00:31]} Kd7 {[%emt 0:00:50]} 31. Rxe7+ Kc6 {[%emt 0:00:15]} 32. Rxc7+ {[%emt 0:00:19]} Kxc7 {[%emt 0:00:01]} 33. Qxh8 {[%emt 0:00:10]} Qe2+ {[%emt 0:00:21]} 34. Ka3 {[%emt 0:00:15]} Qe1 {[%emt 0:02:51]} 35. Qxd4 {[%emt 0:00:27]} Qa1+ {[%emt 0:00:15]} 36. Kb3 {[%emt 0:00:15]} Qb1+ {[%emt 0:00:05]} 37. Ka4 {[%emt 0:01:02]} Qa2+ {[%emt 0:00:01]} 38. Kb5 {[%emt 0:00:20]} Qxf7 {[%emt 0:00:09]} 39. Qa7+ {[%emt 0:00:05]} 1-0

[Event "Stare Mesto Open-A 2022"]
[Site "Stare Mesto"]
[Date "2022.08.19"]
[Round "8.8"]
[White "Zelba, Lukas"]
[Black "Zpevak, Pavel"]
[Result "1/2-1/2"]
[ECO "A45"]
[WhiteElo "1945"]
[BlackElo "2351"]
[Annotator "TA"]
[PlyCount "61"]
[EventDate "2022.08.12"]
[EventType "swiss"]
[EventCountry "CZE"]
[SourceTitle "playchess.com"]
[Source "ChessBase"]
[SourceQuality "1"]
[TimeControl "40/5400+30:1800+30"]

{[%evp 9,61,1,13,-31,-36,-39,-44,-25,10,-37,-29,-26,-12,-34,-33,-35,-33,-36,-12,-25,-28,-29,0,-12,-1,-7,3,0,0,-18,0,-39,-37,-60,-70,-74,-67,-58,-66,-68,-54,-58,-46,-80,-45,-46,-35,-81,-80,-70,-24,-8,0,0]} 1. d4 {[%emt 0:00:06]} Nf6 {[%emt 0:00:06][%cal Bg8f6,Bf6h5,Bh5g3][%mdl 32]} 2. Bf4 {[%emt 0:00:04]} e6 {[%emt 0:00:35]} 3. Nd2 {[%emt 0:03:03]} Nh5 {[%emt 0:01:53]} 4. Bg3 {[%emt 0:00:54]} d6 {[%emt 0:01:47] [#]} 5. e4 $146 {[%emt 0:02:16]} ({Predecessor:} 5. Ngf3 Nxg3 6. hxg3 g6 7. e4 Bg7 8. c3 Qe7 9. Bd3 Nc6 10. Qe2 Bd7 11. e5 {½-½ (48) Popchev,M (2465)-Kolev,A (2490) Bulgaria 1994}) 5... g6 {[%emt 0:01:26]} 6. Be2 {[%emt 0:04:55] A45: Trompowsky Attack.} Nxg3 {[%emt 0:00:21]} 7. hxg3 {[%emt 0:00:06]} Bg7 {[%emt 0:01:08]} 8. c3 {[%emt 0:01:41] Black is slightly better.} O-O {[%emt 0:00:43]} 9. Ngf3 {[%emt 0:04:24]} (9. f4 $11) 9... b6 {[%emt 0:02:48]} 10. a4 {[%emt 0:05:42]} a6 {[%emt 0:04:57]} 11. Nc4 {[%emt 0:08:29]} Bb7 {[%emt 0:10:03]} 12. Qc2 {[%emt 0:12:40]} Nd7 {[%emt 0:07:38]} 13. O-O {[%emt 0:08:07]} Qe7 {[%emt 0:05:14]} 14. Ne3 {[%emt 0:04:39]} Nf6 {[%emt 0:12:25]} 15. Bd3 {[%emt 0:05:30]} Bh6 {[%emt 0:08:53]} 16. Nc4 {[%emt 0:04:39]} Nd7 {[%emt 0:01:55][%cal Bf6d7,Bd7c5,Bc5d3][%mdl 32]} 17. Rfe1 {[%emt 0:04:38]} e5 {[%emt 0:01:30]} 18. Rad1 {[%emt 0:02:26]} Rfd8 {[%emt 0:07:42]} 19. Nh2 {[%emt 0:03:22]} Bg7 {[%emt 0:01:26]} 20. dxe5 {[%emt 0:01:28]} dxe5 {[%emt 0:02:00]} 21. Nf1 {[%emt 0:01:30]} Nc5 {[%emt 0:00:20]} 22. b4 {[%emt 0:00:31]} Nxd3 {[%emt 0:02:41]} 23. Rxd3 {[%emt 0:00:04]} Rxd3 {[%emt 0:01:30]} 24. Qxd3 {[%emt 0:00:05]} Rd8 {[%emt 0:03:51]} 25. Qc2 {[%emt 0:01:18]} Bh6 {[%emt 0:02:30][%cal Oa6a5]} 26. a5 {[%emt 0:04:53]} Qe6 {[%emt 0:04:02]} 27. Nfe3 {[%emt 0:01:11]} b5 {[%emt 0:07:30]} 28. Nd2 {[%emt 0:02:19] [#]} Bf8 $1 {[%emt 0:01:27]} 29. Nb3 {[%emt 0:04:59] [#]} h5 {[%emt 0:01:53]} (29... Bxe4 $1 $15 30. Qxe4 Qxb3 31. Qxe5 Rd3) 30. f3 $11 {[%emt 0:01:28]} Kh7 {[%emt 0:00:52]} 31. Rd1 {Weighted Error Value: White=0.10 (very precise) /Black=0.11 (very precise)} 1/2-1/2

[Event "Stare Mesto Open-A 2022"]
[Site "Stare Mesto"]
[Date "2022.08.20"]
[Round "9.2"]
[White "Sramek, Vojtech"]
[Black "Skalsky, Alexandr"]
[Result "*"]
[ECO "B56"]
[WhiteElo "2249"]
[BlackElo "2187"]
[Annotator "TA"]
[PlyCount "65"]
[EventDate "2022.08.12"]
[EventType "swiss"]
[EventCountry "CZE"]
[SourceTitle "playchess.com"]
[Source "ChessBase"]
[SourceQuality "1"]
[TimeControl "40/5400+30:1800+30"]

{[%evp 18,65,37,0,0,0,0,0,0,0,0,0,0,0,0,0,69,65,137,125,152,151,132,169,259,196,253,64,60,67,118,56,48,48,107,7,261,125,155,163,154,130,290,270,378,233,233,233,233,232]} 1. e4 {[%emt 0:00:04]} c5 {[%emt 0:01:13]} 2. Nf3 {[%emt 0:00:24]} d6 {[%emt 0:00:05]} 3. d4 {[%emt 0:00:06]} cxd4 {[%emt 0:00:04]} 4. Nxd4 {[%emt 0:00:08]} Nf6 {[%emt 0:00:14]} 5. Nc3 {[%emt 0:00:08][%cal Bb1c3,Bc3d5,Bd5e7][%mdl 32]} Nc6 {[%emt 0:01:44]} 6. f3 {[%emt 0:00:14]} e5 {[%emt 0:00:17]} 7. Nb3 {[%emt 0:00:09]} Be7 {[%emt 0:01:02]} 8. Be3 {[%emt 0:00:09]} O-O {[%emt 0:00:14]} 9. Qd2 {[%emt 0:00:52]} Be6 {[%emt 0:03:48]} 10. Nd5 {[%emt 0:00:48]} a5 {[%emt 0:01:04][%cal Ba7a5,Ba5a4][%mdl 32] B56: Classical Sicilian: Unusual Lines.} 11. Bb5 {[%emt 0:06:58]} a4 {[%emt 0:07:42]} 12. Bb6 {[%emt 0:00:50]} Qb8 {[%emt 0:10:53] And now ...Bxd5 would win. The position is equal.} 13. Bxc6 {[%emt 0:01:18]} bxc6 {[%emt 0:04:07]} 14. Nxe7+ {[%emt 0:00:17]} Kh8 {[%emt 0:00:02]} 15. Be3 {[%emt 0:00:53] Hoping for Na5.} axb3 {[%emt 0:01:29]} 16. cxb3 {[%emt 0:00:25]} Qb5 {[%emt 0:29:55]} (16... d5 $11) 17. Qxd6 $14 {[%emt 0:21:14]} Bxb3 {[%emt 0:02:10] [#]} (17... Rfd8 18. Qc5 $16) (17... Rfe8 $14) 18. Kf2 $146 {[%emt 0:08:56]} ({Predecessor:} 18. Qc5 Bxa2 19. Qxb5 cxb5 20. Kf2 Bc4 21. Nc6 Nd7 22. Rhd1 Be6 23. b4 Rfc8 24. Rxa8 Rxa8 {0-1 (77) Melaa,S (2210)-Holleland,S (2133) Fagernes 2020}) 18... Bxa2 {[%emt 0:04:00] [#]} 19. b4 $1 {[%emt 0:03:19]} (19. Qxc6 $2 Qxb2+ 20. Kg3 Nh5+ 21. Kh3 Be6+ 22. Nf5 Rxa1 $19) 19... Rfd8 {[%emt 0:15:21]} 20. Qc5 {[%emt 0:02:14]} ({Don't take} 20. Qxc6 $6 Qxb4 21. Qc2 Qxe7 $14) 20... Qd3 {[%emt 0:00:04]} (20... Nd7 $142 21. Qxb5 (21. Qxc6 Qxb4 22. Nd5 Qb2+ 23. Kg3 Rac8 $11) 21... cxb5) 21. Rhc1 {[%emt 0:06:41]} Be6 {[%emt 0:12:05]} (21... Bc4 $142) 22. Qxc6 $2 {[%emt 0:09:00]} ({Don't play} 22. Nxc6 $6 Rxa1 23. Rxa1 Nd7 $16) (22. Qxe5 $18 Bc4 23. Qb2) 22... Rxa1 {[%emt 0:00:55]} 23. Rxa1 {[%emt 0:00:15]} Bc4 {[%emt 0:00:31]} (23... Ng8 $14) 24. Re1 {[%emt 0:18:02] Active counter play!} ({White should play} 24. Ra8 $16 {[%cal Oc6c4] Threatens to win with Qxc4!} Qe2+ 25. Kg3 Qe1+ 26. Bf2 Nh5+ 27. Kg4 Nf6+ 28. Kh3 Be6+ 29. Nf5) 24... Qc2+ {[%emt 0:00:04]} 25. Kg1 {[%emt 0:01:14] Black must now prevent Qc7.} h5 {[%emt 0:00:13] [#]} ({Black should try} 25... Qc3 $14 26. Bf2 Qxb4) 26. h3 {[%emt 0:11:10]} (26. Kh1 $1 $16) 26... Kh7 $2 {[%emt 0:01:35][%mdl 8192]} (26... Qc3 $11 27. Bf2 Qxb4) 27. Rc1 {[%emt 0:02:02]} (27. Nf5 $18 {is more deadly.}) 27... Rd1+ {[%emt 0:02:30]} 28. Rxd1 {[%emt 0:00:05]} Qxd1+ {[%emt 0:00:01]} 29. Kh2 {[%emt 0:00:07]} Qe2 {[%emt 0:00:52]} (29... Be2 $16 {keeps fighting.}) 30. Bg5 {[%emt 0:01:51]} Ng8 {[%emt 0:00:44]} 31. Nxg8 {[%emt 0:00:58]} Kxg8 {[%emt 0:00:06]} 32. Qe8+ Kh7 33. Qxe5 {[%emt 0:00:49] Weighted Error Value: White=0.47/Black=0.52} *